fUSD/lending_fUSD_20251006
["ID","MTS","AMOUNT","RATE_DAILY","PERIOD"]
[389614860,1759748298415,5690.79119673,0.00012,2]
[389614861,1759748537328,791.14799629,5.7e-05,2]
[389614862,1759748540535,500.0,5.7e-05,2]
[389614863,1759748540908,500.0,5.7e-05,2]
[389614864,1759748541189,-286.78449995,0.00011998,2]
[389614865,1759748541385,800.0,4.7e-05,2]
[389614866,1759748587520,-500.0,0.00011997,2]
[389614867,1759748587551,-500.0,0.00011997,2]
[389614868,1759748587582,-417.3887117,0.00011997,2]
[389614869,1759748587619,-277.2093624,0.00011999,2]
[389614870,1759748587649,-4309.20880327,0.00012,2]
[389614871,1759748587679,-194.35,0.00012377,2]
[389614872,1759748587710,-194.35,0.00012776,2]
[389614873,1759748587739,-194.35,0.00013176,2]
[389614874,1759748587768,-1598.99647497,0.00013198,2]
[389614875,1759748588003,-194.35,0.00013575,2]
[389614876,1759748588037,-194.35,0.00013974,2]
[389614877,1759748588069,-194.35,0.00014373,2]
[389614878,1759748588101,-194.35,0.00014773,2]
[389614879,1759748792393,500.0,0.00011995,2]
[389614880,1759748792464,500.0,0.00011995,2]
[389614881,1759748792518,417.3887117,0.00011995,2]
[389614882,1759748835010,727.54881085,5.7e-05,2]
[389614883,1759748835048,600.0,5.7e-05,2]
[389614884,1759748835086,500.0,5.7e-05,2]
[389614885,1759748835460,376.96088792,5.7e-05,2]
[389614886,1759748835480,123.03911208,5.7e-05,2]
[389614887,1759748835520,600.0,5.7e-05,2]
[389614888,1759748835819,500.0,5.7e-05,2]
[389614889,1759748835860,600.0,5.7e-05,2]
[389614890,1759748836216,500.0,5.7e-05,2]
[389614891,1759748836253,600.0,5.7e-05,2]
[389614892,1759748836560,600.0,5.7e-05,2]
[389614893,1759748836669,500.0,5.7e-05,2]
[389614894,1759748836951,600.0,5.7e-05,2]
[389614895,1759748837044,500.0,5.7e-05,2]
[389614896,1759748837415,600.0,5.7e-05,2]
[389614897,1759748837477,490.00729468,5.7e-05,2]
[389614898,1759748837499,9.99270532,5.7e-05,2]
[389614899,1759748838013,500.0,5e-05,2]
[389614900,1759748838207,500.0,5e-05,2]
[389614901,1759748838248,600.0,5.7e-05,2]
[389614902,1759748838576,500.0,5e-05,2]
[389614903,1759748838711,600.0,5.7e-05,2]
[389614904,1759748838946,500.0,5e-05,2]
[389614905,1759748839085,600.0,5.7e-05,2]
[389614906,1759748839306,500.0,5e-05,2]
[389614907,1759748839623,600.0,5.7e-05,2]
[389614908,1759748839670,500.0,5e-05,2]
[389614909,1759748840019,512.99961022,5e-05,2]
[389614910,1759748840058,290.05409122,5.7e-05,2]
[389614911,1759748840080,309.94590878,5.7e-05,2]
[389614912,1759748840411,600.0,5.7e-05,2]
[389614913,1759748840801,600.0,5.7e-05,2]
[389614914,1759748841208,600.0,5e-05,2]
[389614915,1759748842087,600.0,5e-05,2]
[389614916,1759748842160,600.0,5e-05,2]
[389614917,1759748842330,600.0,5e-05,2]
[389614918,1759748842719,600.0,5e-05,2]
[389614919,1759748843096,600.0,5e-05,2]
[389614920,1759748843461,600.0,5e-05,2]
[389614921,1759748844161,503.10049798,5e-05,2]
[389614922,1759748844182,96.89950202,5e-05,2]
[389614923,1759748844700,600.0,5e-05,2]
[389614924,1759748845569,600.0,5e-05,2]
[389614925,1759748845964,600.0,5e-05,2]
[389614926,1759748846365,600.0,5e-05,2]
[389614927,1759748846714,897.80021074,5e-05,2]
[389614928,1759748970113,-1598.99647497,0.00013196,2]
[389614929,1759748970135,-277.2093624,0.00014672,2]
[389614930,1759748970155,-2500.0,0.00014673,2]
[389614931,1759748970175,-478.67437463,0.00014733,3]
[389614933,1759749031645,-187.32562537,0.00014733,3]
[389614934,1759749031654,-150.0,0.0001477,2]
[389614935,1759749031664,-150.0,0.0001477,2]
[389614936,1759749031673,-45.51780687,0.0001477,2]
[389614937,1759749031683,-104.48219313,0.0001477,2]
[389614938,1759749031693,-150.0,0.0001477,2]
[389614939,1759749031702,-150.0,0.0001477,2]
[389614940,1759749031711,-208.80344041,0.0001477,2]
[389614941,1759749031721,-150.0,0.0001477,2]
[389614942,1759749031730,-150.0,0.0001477,2]
[389614943,1759749031739,-150.0,0.0001477,2]
[389614944,1759749031748,-150.0,0.0001477,2]
[389614945,1759749031758,-150.0,0.0001477,2]
[389614946,1759749031767,-150.0,0.0001477,2]
[389614947,1759749031776,-375.56,0.0001477,2]
[389614948,1759749031786,-150.0,0.00014919,2]
[389614949,1759749031795,-150.0,0.00014952,2]
[389614950,1759749031805,-150.0,0.00015043,7]
[389614951,1759749031814,-375.56,0.00015044,2]
[389614952,1759749031825,-150.0,0.00015068,2]
[389614953,1759749031834,-150.0,0.00015098,2]
[389614954,1759749031844,-150.0,0.00015135,2]
[389614955,1759749031856,-194.35,0.00015172,2]
[389614956,1759749031865,-150.0,0.0001518,2]
[389614957,1759749031874,-150.0,0.0001518,2]
[389614958,1759749031883,-150.0,0.00015217,2]
[389614959,1759749031893,-150.0,0.00015317,2]
[389614960,1759749031902,-150.0,0.00015317,2]
[389614961,1759749031911,-150.0,0.00015317,2]
[389614962,1759749031921,-375.56,0.00015318,2]
[389614963,1759749031930,-150.0,0.00015367,2]
[389614964,1759749031940,-150.0,0.00015426,2]
[389614965,1759749031949,-150.0,0.00015499,2]
[389614966,1759749031961,-150.0,0.00015516,2]
[389614967,1759749031971,-150.0,0.0001559,2]
[389614968,1759749031980,-150.0,0.0001559,2]
[389614969,1759749031990,-375.56,0.00015592,2]
[389614970,1759749031999,-150.0,0.000156,2]
[389614971,1759749032010,-150.0,0.00015665,2]
[389614972,1759749032019,-150.0,0.00015682,2]
[389614973,1759749032029,-150.0,0.00015755,2]
[389614974,1759749032038,-609.05019383,0.00015764,2]
[389614975,1759749032048,-2436.20077532,0.00015764,2]
[389614976,1759749032058,-1218.10038766,0.00015764,2]
[389614977,1759749032067,-150.0,0.00015814,2]
[389614978,1759749032076,-1837.09897853,0.00015835,2]
[389614979,1759749032093,-1208.15199063,0.00015835,2]
[389614980,1759749032102,-1426.95366638,0.0001586,2]
[389614981,1759749032114,-231.60664362,0.0001586,2]
[389614982,1759749032123,-150.0,0.00015864,2]
[389614984,1759749032133,-68.39335638,0.00015864,2]
[389614986,1759749032147,-81.60664362,0.00015864,2]
[389614987,1759749032156,-150.0,0.00015864,2]
[389614989,1759749032165,-291.20818838,0.00015866,2]
[389614990,1759749032177,-84.3979587,0.00015866,2]
[389614991,1759749032186,-231.28369723,0.00015886,2]
[389614993,1759749032195,-166.46669735,0.00015895,2]
[389614996,1759749032204,-1454.20872895,0.00015895,2]
[389614998,1759749032213,-2410.07647124,0.00015895,2]
[389615002,1759749032222,-176.74610899,0.00015895,2]
[389615005,1759749032231,-214.60087538,0.00015895,2]
[389615006,1759749032240,-2675.3117,0.00015895,2]
[389615007,1759749032249,-5000.0,0.00015895,2]
[389615008,1759749032259,-1658.5603,0.0001593,2]
[389615009,1759749032269,-1305.4185976,0.00015933,2]
[389615010,1759749032278,-166.0708842,0.00015933,2]
[389615011,1759749032288,-1454.20872891,0.00015944,2]
[389615012,1759749032297,-2410.07647119,0.00015944,2]
[389615013,1759749032306,-150.0,0.00015963,2]
[389615014,1759749032315,-500.0,0.00015973,2]
[389615015,1759749032324,-500.0,0.00015973,2]
[389615016,1759749032333,-500.0,0.00015973,2]
[389615017,1759749032343,-501.3878239,0.00015973,2]
[389615018,1759749032352,-395.83838886,0.00015973,2]
[389615019,1759749032365,-204.034,0.00015985,2]
[389615020,1759749032374,-3290.383,0.00015985,2]
[389615021,1759749032383,-722.52041113,0.00015985,2]
[389615022,1759749032392,-500.0,0.00015985,2]
[389615023,1759749032402,-500.0,0.00015985,2]
[389615024,1759749032411,-322.6107,0.00015985,2]
[389615025,1759749032420,-500.0,0.00015985,2]
[389615026,1759749032432,-500.0,0.00015985,2]
[389615027,1759749032441,-500.0,0.00015985,2]
[389615028,1759749032451,-500.0,0.00015985,2]
[389615029,1759749032460,-500.0,0.00015985,2]
[389615030,1759749032470,-500.0,0.00015985,2]
[389615031,1759749032479,-500.0,0.00015985,2]
[389615032,1759749032489,-500.0,0.00015985,2]
[389615033,1759749032498,-500.0,0.00015985,2]
[389615034,1759749032508,-500.0,0.00015985,2]
[389615035,1759749032517,-500.0,0.00015985,2]
[389615036,1759749032528,-500.0,0.00015985,2]
[389615037,1759749032537,-500.0,0.00015985,2]
[389615038,1759749032546,-500.0,0.00015985,2]
[389615039,1759749032555,-1658.5603,0.0001599,2]
[389615040,1759749032564,-6180.63377222,0.00015991,3]
[389615041,1759749032576,-15386.23622778,0.00015991,3]
[389615042,1759749032586,-1454.20872891,0.00015993,2]
[389615043,1759749032595,-2410.07647119,0.00015993,2]
[389615044,1759749032604,-1000.00004499,0.00015994,2]
[389615045,1759749032614,-35868.82637779,0.00015995,2]
[389615046,1759749032649,-5330.43935815,0.00015995,2]
[389615047,1759749032664,-508.67861572,0.00015995,2]
[389615048,1759749037374,-20938.0,0.00015995,2]
[389615049,1759749037426,-1406.16,0.00015995,2]
[389615050,1759749037746,-640.87308337,0.00015995,2]
[389615051,1759749037766,-15080.80997088,0.00015995,2]
[389615052,1759749037787,-7804.06286503,0.00015995,2]
[389615053,1759749037797,-19.50855551,0.00015995,2]
[389615054,1759749037809,-3973.06342026,0.00015995,2]
[389615107,1759749039761,-373697.5909591,0.00015995,2]
[389615108,1759749039776,-236191.20827214,0.00015995,2]
[389615110,1759749039787,-1023.24592403,0.00015995,2]
[389615111,1759749039797,-1666.92887226,0.00015995,2]
[389615113,1759749039808,-1919.29680524,0.00015995,2]
[389615115,1759749039818,-550.0,0.00015995,2]
[389615117,1759749039829,-1371.10347681,0.00015995,2]
[389615120,1759749039847,-930.53859898,0.00015995,2]
[389615184,1759749042823,-194.04655368,0.00015316,2]
[389615185,1759749042833,-30044.79412072,0.00015995,2]
[389615186,1759749042842,-7811.7441869,0.00015995,2]
[389615187,1759749042852,-1503.13361471,0.00015995,2]
[389615188,1759749042861,-200.0,0.00015995,2]
[389615189,1759749042873,-1658.5603,0.00015995,2]
[389615190,1759749042882,-1658.5603,0.00015995,2]
[389615191,1759749042894,-400.0,0.00016,2]
[389615192,1759749042903,-22500.0,0.00016,2]
[389615193,1759749042912,-15000.0,0.00016,2]
[389615194,1759749042921,-370.68887098,0.00016,3]
[389615195,1759749042931,-20042.1204428,0.00016,2]
[389615196,1759749042941,-10000.0,0.00016,2]
[389615197,1759749042950,-9438.0,0.00016,2]
[389615198,1759749042959,-150.0,0.00016001,2]
[389615199,1759749042968,-150.0,0.00016001,2]
[389615200,1759749042978,-15000.0,0.0001604,2]
[389615201,1759749042987,-1454.20872891,0.00016043,2]
[389615202,1759749042997,-2410.07647119,0.00016043,2]
[389615203,1759749043006,-150.0,0.00016046,2]
[389615204,1759749043015,-1658.56031,0.0001605,2]
[389615205,1759749043024,-22500.0,0.0001605,2]
[389615206,1759749043033,-594.0,0.00016057,2]
[389615207,1759749043042,-191.79995244,0.0001606,2]
[389615208,1759749043051,-15000.0,0.0001608,2]
[389615209,1759749043060,-150.0,0.00016083,2]
[389615210,1759749043070,-594.0,0.00016091,2]
[389615211,1759749043080,-1454.20872891,0.00016092,2]
[389615212,1759749043089,-2410.07647119,0.00016092,2]
[389615213,1759749043099,-22500.0,0.000161,2]
[389615214,1759749043108,-774.60526354,0.00016109,2]
[389615215,1759749043118,-150.0,0.00016113,2]
[389615216,1759749043126,-15000.0,0.0001612,2]
[389615217,1759749043135,-594.0,0.00016129,2]
[389615218,1759749043145,-10000.0,0.00016133,2]
[389615219,1759749043154,-1454.20872891,0.00016141,2]
[389615220,1759749043163,-2410.07647119,0.00016141,2]
[389615221,1759749043172,-1000.0,0.0001615,2]
[389615222,1759749043181,-22500.0,0.0001615,2]
[389615223,1759749043190,-594.0,0.0001615,2]
[389615224,1759749043199,-139595.95140748,0.00016154,2]
[389615225,1759749043208,-200.0,0.00016155,2]
[389615226,1759749043217,-15000.0,0.0001616,2]
[389615227,1759749043226,-214.60087538,0.00016168,2]
[389615228,1759749043234,-168.0,0.00016169,2]
[389615229,1759749043243,-500.0,0.00016173,2]
[389615230,1759749043253,-500.0,0.00016173,2]
[389615231,1759749043262,-500.0,0.00016173,2]
[389615232,1759749043271,-500.0,0.00016173,2]
[389615233,1759749043280,-500.0,0.00016173,2]
[389615234,1759749043289,-500.0,0.00016173,2]
[389615235,1759749043299,-500.0,0.00016173,2]
[389615236,1759749043307,-500.0,0.00016173,2]
[389615237,1759749043316,-500.0,0.00016173,2]
[389615238,1759749043325,-500.0,0.00016173,2]
[389615239,1759749043334,-500.0,0.00016173,2]
[389615240,1759749043344,-500.0,0.00016173,2]
[389615241,1759749043353,-500.0,0.00016173,2]
[389615242,1759749043365,-500.0,0.00016173,2]
[389615243,1759749043374,-500.0,0.00016173,2]
[389615244,1759749043383,-500.0,0.00016173,2]
[389615245,1759749043391,-490.57,0.00016173,2]
[389615246,1759749043400,-500.0,0.00016173,2]
[389615247,1759749043409,-500.0,0.00016173,2]
[389615248,1759749043418,-500.0,0.00016173,2]
[389615249,1759749043427,-500.0,0.00016173,2]
[389615250,1759749043436,-500.0,0.00016173,2]
[389615251,1759749043447,-500.0,0.00016173,2]
[389615252,1759749043457,-500.0,0.00016173,2]
[389615253,1759749043467,-500.0,0.00016173,2]
[389615254,1759749043477,-500.0,0.00016173,2]
[389615255,1759749043488,-500.0,0.00016173,2]
[389615256,1759749043497,-500.0,0.00016173,2]
[389615257,1759749043506,-500.0,0.00016173,2]
[389615258,1759749043515,-500.0,0.00016173,2]
[389615259,1759749043524,-500.0,0.00016173,2]
[389615260,1759749043533,-500.0,0.00016173,2]
[389615261,1759749043542,-500.0,0.00016173,2]
[389615262,1759749043551,-500.0,0.00016173,2]
[389615263,1759749043561,-500.0,0.00016173,2]
[389615264,1759749043570,-500.0,0.00016173,2]
[389615265,1759749043580,-500.0,0.00016173,2]
[389615266,1759749043590,-507.87,0.00016173,2]
[389615267,1759749043600,-500.0,0.00016173,2]
[389615268,1759749043610,-500.0,0.00016173,2]
[389615269,1759749043619,-500.0,0.00016173,2]
[389615270,1759749043629,-500.0,0.00016173,2]
[389615271,1759749043639,-500.0,0.00016173,2]
[389615272,1759749043651,-500.0,0.00016173,2]
[389615273,1759749043660,-500.0,0.00016173,2]
[389615274,1759749043670,-215.47,0.00016173,2]
[389615275,1759749043679,-150.0,0.00016175,2]
[389615276,1759749043688,-1454.20872891,0.0001619,2]
[389615277,1759749043697,-2410.07647119,0.0001619,2]
[389615278,1759749043706,-22500.0,0.000162,2]
[389615279,1759749043715,-15000.0,0.000162,2]
[389615280,1759749043724,-168.0,0.00016201,2]
[389615281,1759749043733,-152.48772584,0.00016203,2]
[389615282,1759749043743,-168.0,0.00016213,2]
[389615283,1759749043752,-150.0,0.00016229,2]
[389615284,1759749043761,-2500.0,0.00016233,3]
[389615285,1759749043770,-1000.0,0.00016237,2]
[389615286,1759749043779,-1454.20872891,0.0001624,2]
[389615287,1759749043789,-2410.07647119,0.0001624,2]
[389615288,1759749043798,-15000.0,0.0001624,2]
[389615289,1759749043807,-2500.0,0.00016242,3]
[389615290,1759749043816,-22500.0,0.0001625,2]
[389615291,1759749043825,-2500.0,0.0001625,3]
[389615292,1759749043836,-594.0,0.00016259,2]
[389615293,1759749043847,-2500.0,0.00016259,3]
[389615294,1759749043857,-150.0,0.00016262,2]
[389615295,1759749043866,-10000.0,0.00016267,2]
[389615296,1759749043875,-2500.0,0.00016268,3]
[389615297,1759749043884,-359.24433224,0.00016271,2]
[389615298,1759749043896,-701.92234472,0.00016271,2]
[389615299,1759749043906,-594.0,0.00016271,2]
[389615300,1759749043916,-42745.33994637,0.00016272,2]
[389615301,1759749043925,-2500.0,0.00016277,3]
[389615302,1759749043934,-15000.0,0.0001628,2]
[389615303,1759749043943,-2500.0,0.00016286,3]
[389615304,1759749043953,-534306.46097198,0.00016286,2]
[389615305,1759749043962,-52029.31888259,0.00016286,2]
[389615306,1759749043971,-714.47959824,0.00016286,2]
[389615307,1759749043980,-1454.20872891,0.00016289,2]
[389615308,1759749043989,-2410.07647119,0.00016289,2]
[389615309,1759749043999,-110098.13893179,0.00016289,2]
[389615310,1759749044008,-2500.0,0.00016294,3]
[389615311,1759749044018,-534306.46097198,0.00016296,2]
[389615312,1759749044029,-1061.16667696,0.00016299,2]
[389615313,1759749044038,-22500.0,0.000163,2]
[389615314,1759749044047,-1061.16667696,0.00016303,2]
[389615315,1759749044056,-42745.33994637,0.00016303,2]
[389615316,1759749044066,-2500.0,0.00016303,3]
[389615317,1759749044076,-200.0,0.00016307,2]
[389615318,1759749044085,-2500.0,0.00016312,3]
[389615319,1759749044094,-200.0,0.00016316,2]
[389615320,1759749044103,-15000.0,0.0001632,2]
[389615321,1759749044112,-2500.0,0.00016321,3]
[389615322,1759749044121,-110098.13893179,0.00016324,2]
[389615323,1759749044130,-110098.13893179,0.00016328,2]
[389615324,1759749044140,-52029.31888259,0.00016328,2]
[389615325,1759749044149,-33377.85515058,0.00016329,2]
[389615326,1759749044158,-2500.0,0.0001633,3]
[389615327,1759749044167,-1061.16667696,0.00016334,2]
[389615328,1759749044176,-1139.37518555,0.00016335,2]
[389615329,1759749044185,-1454.20872891,0.00016338,2]
[389615330,1759749044194,-2410.07647119,0.00016338,2]
[389615331,1759749044203,-430.16381897,0.00016338,2]
[389615332,1759749044213,-176.74610899,0.00016338,2]
[389615333,1759749044224,-164.99527522,0.00016338,2]
[389615334,1759749044233,-171.56779491,0.00016338,2]
[389615335,1759749044242,-581.41963312,0.00016338,2]
[389615336,1759749044252,-2500.0,0.00016338,3]
[389615337,1759749044261,-1000.0,0.00016339,2]
[389615338,1759749044271,-110098.13893179,0.00016341,2]
[389615339,1759749044280,-33377.85515058,0.00016344,2]
[389615340,1759749044290,-2500.0,0.00016347,3]
[389615341,1759749044300,-33377.85515058,0.00016349,2]
[389615342,1759749044312,-52029.31888259,0.00016349,2]
[389615343,1759749044322,-22500.0,0.0001635,2]
[389615344,1759749044332,-594.0,0.00016356,2]
[389615345,1759749044341,-2500.0,0.00016356,3]
[389615346,1759749044349,-2500.0,0.00016356,3]
[389615347,1759749044358,-52029.31888259,0.00016357,2]
[389615348,1759749044376,-1323.82530819,0.00016357,2]
[389615349,1759749044390,-151.0,0.0001636,2]
[389615350,1759749044398,-151.0,0.0001636,2]
[389615351,1759749044407,-178.248587,0.0001636,2]
[389615352,1759749044416,-151.0,0.0001636,2]
[389615353,1759749044425,-151.0,0.0001636,2]
[389615354,1759749044434,-285.22764,0.0001636,2]
[389615355,1759749044443,-151.0,0.0001636,2]
[389615356,1759749044451,-151.0,0.0001636,2]
[389615357,1759749044461,-151.0,0.0001636,2]
[389615358,1759749044470,-151.0,0.0001636,2]
[389615359,1759749044479,-151.951177,0.0001636,2]
[389615360,1759749044488,-151.0,0.0001636,2]
[389615361,1759749044497,-13717.72,0.0001636,2]
[389615362,1759749044506,-42745.33994637,0.00016362,2]
[389615363,1759749044516,-33377.85515058,0.00016365,2]
[389615364,1759749044525,-2500.0,0.00016365,3]
[389615365,1759749044534,-2500.0,0.00016365,3]
[389615366,1759749044543,-311003.30866359,0.00016365,2]
[389615386,1759749045454,-370.68887098,0.00016018,2]
[389615388,1759749045463,-2271.22257992,0.00016365,2]
[389615401,1759749045574,-1886.05579871,0.00016365,2]
[389615402,1759749045592,-6543.06945284,0.00016365,2]
[389615403,1759749045604,-18399.45947669,0.00016365,2]
[389615404,1759749045622,-3841.41723864,0.00016365,2]
[389615405,1759749045729,-2188.6,0.00016365,2]
[389615406,1759749045741,-1600.26,0.00016365,2]
[389615413,1759749144992,503.09715217,5.7e-05,2]
[389615414,1759749734621,948.13622919,5.7e-05,2]
[389615415,1759749734978,500.0,5.7e-05,2]
[389615416,1759749735327,500.0,5.7e-05,2]
[389615417,1759749735710,500.0,5e-05,2]
[389615418,1759749736366,648.63421915,5e-05,2]
[389615430,1759750041353,-156.66169563,0.0001305,2]
[389615431,1759750041375,-1000.0,0.000147,2]
[389615432,1759750041407,-500.0,0.00014769,2]
[389615433,1759750041438,-500.0,0.00014769,2]
[389615434,1759750041465,-500.0,0.00014769,2]
[389615435,1759750041493,-500.0,0.00014769,2]
[389615436,1759750041520,-553.97312031,0.00014769,2]
[389615437,1759750041544,-150.0,0.0001477,2]
[389615438,1759750041567,-150.0,0.0001477,2]
[389615439,1759750041591,-150.0,0.0001477,2]
[389615440,1759750041614,-150.0,0.0001477,2]
[389615441,1759750041636,-150.0,0.0001477,2]
[389615442,1759750041658,-150.0,0.0001477,2]
[389615443,1759750041681,-150.0,0.0001477,2]
[389615444,1759750041704,-150.0,0.0001477,2]
[389615445,1759750041726,-150.0,0.0001477,2]
[389615446,1759750041750,-212.97751499,0.0001477,2]
[389615447,1759750041773,-170.6984501,0.00014907,2]
[389615448,1759750041795,-500.0,0.00014973,2]
[389615449,1759750041821,-500.0,0.00014973,2]
[389615450,1759750041844,-500.0,0.00014973,2]
[389615451,1759750041865,-500.0,0.00014973,2]
[389615452,1759750041888,-361.79137762,0.00014999,2]
[389615453,1759750041912,-192.23793698,0.00014999,2]
[389615454,1759750041935,-205.25712035,0.00014999,2]
[389615455,1759750041959,-1719800.80045128,0.00015,2]
[389615465,1759750121464,-333.73918808,0.00013,15]
[389615466,1759750121497,-283.77479115,0.00014878,2]
[389615467,1759750121520,-378.06,0.00014879,2]
[389615468,1759750121543,-6182.08870546,0.00015,2]
[389615469,1759750121566,-2021.50851052,0.00015,2]
[389615470,1759750121589,-4289722.50644204,0.00015,2]
[389615471,1759750125302,435.78368048,0.0001,2]
[389615490,1759750231788,-150.0,0.000145,2]
[389615491,1759750231799,-422.77289877,0.0001475,2]
[389615492,1759750231831,-579.46715525,0.0001475,2]
[389615493,1759750231887,-606.48713533,0.0001475,2]
[389615494,1759750231898,-891.27281065,0.0001475,2]
[389615495,1759750231907,-942.81062958,0.0001475,2]
[389615496,1759750231916,-169.46033707,0.00014878,2]
[389615497,1759750231925,-1645.64681685,0.00014927,2]
[389615498,1759750231935,-995.57397923,0.00015,2]
[389615499,1759750231944,-1157.78809486,0.00015,2]
[389615500,1759750231954,-200.0,0.00015007,2]
[389615501,1759750231963,-1600.0,0.00015055,2]
[389615502,1759750231971,-250.0,0.00015073,2]
[389615503,1759750231981,-68875.5997309,0.00015093,2]
[389615504,1759750231990,-161.26,0.00015154,2]
[389615505,1759750231999,-442.26,0.00015231,2]
[389615506,1759750232010,-1200.0,0.00015259,2]
[389615507,1759750232019,-444.2,0.0001526,2]
[389615508,1759750232028,-431.71,0.0001526,2]
[389615509,1759750232037,-440.7,0.00015263,2]
[389615510,1759750232048,-433.19,0.00015299,2]
[389615512,1759750232057,-429.96,0.00015299,2]
[389615514,1759750232065,-442.03,0.00015299,2]
[389615516,1759750232074,-443.33,0.00015352,2]
[389615518,1759750232084,-432.66,0.00015352,2]
[389615519,1759750232093,-441.86,0.00015424,2]
[389615520,1759750232102,-442.5,0.00015424,2]
[389615522,1759750232112,-437.16,0.00015424,2]
[389615524,1759750232120,-434.16786949,0.00015476,2]
[389615526,1759750232130,-231.28369723,0.00015476,2]
[389615527,1759750232139,-443.48,0.00015522,2]
[389615528,1759750232147,-427.63,0.00015522,2]
[389615529,1759750232156,-427.55,0.00015522,2]
[389615530,1759750232165,-435.1,0.00015522,2]
[389615531,1759750232174,-378.06,0.00015623,2]
[389615532,1759750232183,-429.46,0.0001566,2]
[389615533,1759750232191,-440.54,0.0001566,2]
[389615534,1759750232200,-438.33,0.0001566,2]
[389615535,1759750232209,-150.0,0.0001568,2]
[389615536,1759750232218,-1000.0,0.000157,2]
[389615537,1759750232226,-322.6107,0.00015831,2]
[389615538,1759750232236,-500.0,0.00015831,2]
[389615539,1759750232246,-176.47845399,0.00015831,2]
[389615541,1759750232254,-500.0,0.00015831,2]
[389615542,1759750232264,-500.0,0.00015831,2]
[389615543,1759750232273,-500.0,0.00015831,2]
[389615544,1759750232282,-500.0,0.00015831,2]
[389615545,1759750232291,-500.0,0.00015831,2]
[389615546,1759750232300,-500.0,0.00015831,2]
[389615547,1759750232309,-500.0,0.00015831,2]
[389615548,1759750232318,-500.0,0.00015831,2]
[389615549,1759750232327,-500.0,0.00015831,2]
[389615550,1759750232335,-394.79058519,0.00015833,2]
[389615551,1759750232344,-370.68887098,0.00015848,2]
[389615552,1759750232353,-441.57,0.00015881,2]
[389615554,1759750232368,-431.17,0.00015881,2]
[389615555,1759750232377,-437.46,0.00015881,2]
[389615556,1759750232387,-443.47,0.00015882,2]
[389615557,1759750232396,-436.57,0.00015882,2]
[389615558,1759750232405,-441.09,0.00015883,2]
[389615559,1759750232417,-438.9,0.00015884,2]
[389615560,1759750232427,-443.5,0.00015884,2]
[389615561,1759750232436,-435.69,0.00015884,2]
[389615562,1759750232445,-441.92,0.00015884,2]
[389615563,1759750232459,-435.64,0.00015884,2]
[389615564,1759750232468,-434.61,0.00015884,2]
[389615565,1759750232478,-434.37,0.00015885,2]
[389615566,1759750232487,-434.01,0.00015885,2]
[389615567,1759750232497,-429.96,0.00015885,2]
[389615568,1759750232507,-500.0,0.00015885,2]
[389615569,1759750232518,-150.0,0.00015885,2]
[389615570,1759750232528,-150.0,0.00015885,2]
[389615571,1759750232537,-150.0,0.00015885,2]
[389615572,1759750232546,-500.0,0.00015885,2]
[389615573,1759750232556,-150.0,0.00015885,2]
[389615574,1759750232567,-150.0,0.00015885,2]
[389615575,1759750232576,-482.0,0.00015885,2]
[389615576,1759750232587,-150.0,0.00015885,2]
[389615577,1759750232597,-290.96620018,0.00015885,2]
[389615578,1759750232608,-790.0,0.00015885,2]